fUSD/lending_fUSD_20240822
["ID","MTS","AMOUNT","RATE_DAILY","PERIOD"]
[335578280,1724339272304,-411.12280201,0.00024994,15]
[335578281,1724339272356,-411.12280201,0.00025311,15]
[335578282,1724339272399,-411.12280201,0.00025721,15]
[335578283,1724339272449,-1002.81,0.00027397,10]
[335578284,1724339272531,-637088.07462507,0.00031,30]
[335578285,1724339272574,-1000000.0,0.00031,30]
[335578286,1724339272616,-150.0,0.0003134,120]
[335578287,1724339272654,-4227.95549637,0.000314,30]
[335578288,1724339272695,-3213.59148553,0.000315,30]
[335578289,1724339272736,-202.0,0.0003164,30]
[335578290,1724339272774,-174.83301458,0.00031681,120]
[335578291,1724339272815,-150.0,0.00031685,120]
[335578292,1724339272857,-150.0,0.00031733,120]
[335578293,1724339272897,-186.0,0.000318,16]
[335578294,1724339272940,-151.0,0.00031918,120]
[335578295,1724339272984,-50000.0,0.00032,22]
[335578296,1724339273027,-790.49423871,0.00032,120]
[335578297,1724339273066,-900.0,0.00032,33]
[335578298,1724339273105,-150.0,0.00032,21]
[335578299,1724339273146,-1000000.0,0.00032,60]
[335578300,1724339273184,-1000000.0,0.00032,60]
[335578301,1724339273224,-150.386367,0.00032055,14]
[335578302,1724339273267,-150.0,0.00032409,120]
[335578303,1724339273307,-150.0,0.00032551,120]
[335578304,1724339273351,-150.0,0.00032587,120]
[335578305,1724339273392,-150.0,0.00032709,120]
[335578306,1724339273432,-3839.0,0.00032736,35]
[335578307,1724339273472,-500.0,0.00032762,120]
[335578308,1724339273512,-496.0,0.000328,17]
[335578309,1724339273550,-496.0,0.000328,17]
[335578310,1724339273589,-992.0,0.000328,17]
[335578311,1724339273627,-202.0,0.000328,30]
[335578312,1724339273666,-193.0,0.000328,17]
[335578313,1724339273705,-193.0,0.000328,17]
[335578314,1724339273745,-200.0,0.000328,17]
[335578315,1724339273786,-2632.89,0.00032876,120]
[335578316,1724339273831,-2632.89,0.00032876,120]
[335578317,1724339273873,-2632.89,0.00032876,120]
[335578318,1724339273917,-2632.89,0.00032876,120]
[335578319,1724339273959,-2632.89,0.00032876,120]
[335578320,1724339274001,-2632.89,0.00032876,120]
[335578321,1724339274041,-2632.89,0.00032876,120]
[335578322,1724339274083,-2632.89,0.00032876,120]
[335578323,1724339274125,-2632.89,0.00032876,120]
[335578324,1724339274166,-2632.89,0.00032876,120]
[335578325,1724339274207,-2632.89,0.00032876,120]
[335578326,1724339274246,-2632.89,0.00032876,120]
[335578327,1724339274286,-2632.89,0.00032876,120]
[335578328,1724339274326,-2632.89,0.00032876,120]
[335578329,1724339274365,-2632.89,0.00032876,120]
[335578330,1724339274409,-2632.89,0.00032876,120]
[335578331,1724339274453,-2632.89,0.00032876,120]
[335578332,1724339274493,-2632.89,0.00032876,120]
[335578333,1724339274534,-2632.89,0.00032876,120]
[335578334,1724339274575,-2632.89,0.00032876,120]
[335578335,1724339274613,-2632.89,0.00032876,120]
[335578336,1724339274655,-2632.89,0.00032876,120]
[335578337,1724339274698,-2632.89,0.00032876,120]
[335578338,1724339274736,-2632.98354439,0.00032876,120]
[335578339,1724339274777,-200.0,0.00032877,60]
[335578340,1724339274814,-175.26,0.00032877,15]
[335578341,1724339274858,-151.0,0.00032877,120]
[335578342,1724339274901,-2598.34974152,0.00032877,30]
[335578343,1724339274945,-1060.87744263,0.00032877,30]
[335578344,1724339274988,-5000.0,0.000329,30]
[335578345,1724339275030,-150.0,0.00032981,120]
[335578346,1724339275170,-50000.0,0.00033,23]
[335578347,1724339275246,-900.0,0.00033,34]
[335578348,1724339275288,-160.79076406,0.00033,120]
[335578349,1724339275332,-1000000.0,0.00033,60]
[335578350,1724339275374,-161793.66723994,0.00033,60]
[335578351,1724339303899,-563.05,9.912e-05,2]
[335578352,1724339303931,-629.67185468,9.943e-05,2]
[335578353,1724339304136,-149.62847105,9.943e-05,2]
[335578354,1724339304180,-206.02448722,9.943e-05,2]
[335578355,1724339304223,-277.72064282,9.943e-05,2]
[335578356,1724339304267,-171.0,9.947e-05,2]
[335578357,1724339304308,-300.0,9.948e-05,2]
[335578358,1724339304358,-88.34825359,9.949e-05,2]
[335578359,1724339304405,-1192.72185468,9.949e-05,2]
[335578360,1724339304452,-873.67522768,9.949e-05,2]
[335578361,1724339304501,-1192.72185468,9.949e-05,2]
[335578362,1724339304548,-1192.72185468,9.949e-05,2]
[335578363,1724339304602,-39.86029524,9.949e-05,2]
[335578364,1724339304645,-239.63,9.949e-05,2]
[335578365,1724339304688,-486.00148324,9.962e-05,2]
[335578366,1724339304732,-427.2300762,9.962e-05,2]
[335578367,1724339328866,-246.71553516,9.962e-05,2]
[335578369,1724339353357,155.0,0.00012075,60]
[335578371,1724339407274,159.09689809,0.00014636,60]
[335578387,1724339431653,-600.27,0.0001,2]
[335578388,1724339431665,-449.73,0.0001,2]
[335578389,1724339431674,-160.0,0.00010027,2]
[335578390,1724339431683,-122.43651249,0.00010097,2]
[335578391,1724339431695,-32.56348751,0.00010097,2]
[335578392,1724339431704,-155.0,0.00010097,2]
[335578393,1724339431713,-872.0,0.00010471,2]
[335578394,1724339431722,-339.54255686,0.00010505,2]
[335578395,1724339431731,-1773.06757292,0.00010565,2]
[335578396,1724339431742,-298.82691546,0.00010566,2]
[335578397,1724339431751,-300.0,0.00010698,2]
[335578398,1724339431760,-314.17562517,0.00010699,2]
[335578399,1724339431770,-1919.82384208,0.000107,2]
[335578400,1724339431781,-5243.29172088,0.000107,2]
[335578401,1724339431800,-81.55233704,0.000107,2]
[335578402,1724339431810,-1000.0,0.000107,2]
[335578403,1724339431819,-155.0,0.00010713,2]
[335578404,1724339431829,-316.80001562,0.00010713,2]
[335578405,1724339431838,-764.0,0.00010786,2]
[335578406,1724339431848,-150.99,0.00010786,2]
[335578407,1724339431857,-289.0,0.00010786,2]
[335578408,1724339431867,-1674.0,0.00010786,2]
[335578409,1724339431876,-1205.0,0.00010786,2]
[335578410,1724339431885,-268.16800468,0.000108,2]
[335578411,1724339431895,-1000.0,0.000108,2]
[335578412,1724339431904,-203.0048331,0.00010861,2]
[335578413,1724339431913,-155.68618912,0.00010861,2]
[335578414,1724339431923,-179.71785152,0.00010862,2]
[335578415,1724339431933,-199.21998058,0.00010862,2]
[335578416,1724339431943,-164.44192191,0.00010862,2]
[335578417,1724339431953,-33.24236643,0.00010862,2]
[335578418,1724339431968,-126.26595327,0.00010862,2]
[335578419,1724339431979,-175.17139388,0.00010862,2]
[335578420,1724339431991,-25.81254906,0.00010862,2]
[335578421,1724339432000,-432.43627128,0.00010862,2]
[335578422,1724339432011,-200.82582618,0.00010862,2]
[335578423,1724339432020,-155.19086348,0.00010888,2]
[335578424,1724339432030,-156.43953216,0.00010888,2]
[335578425,1724339432040,-159.77780978,0.00010888,2]
[335578426,1724339432050,-222.32373504,0.00010888,2]
[335578427,1724339432059,-309.97782695,0.00010888,2]
[335578428,1724339432068,-255.13733329,0.00010888,2]
[335578429,1724339432077,-268.73034291,0.00010888,2]
[335578430,1724339432089,-61.7321694,0.00010888,2]
[335578432,1724339432098,-150.0,0.00010889,2]
[335578434,1724339432107,-1544.0,0.0001089,2]
[335578436,1724339432117,-619.0,0.0001089,2]
[335578437,1724339432126,-1258.0,0.0001089,2]
[335578438,1724339432135,-1923.0,0.0001089,2]
[335578439,1724339432144,-556.0,0.0001089,2]
[335578440,1724339432154,-447.0,0.0001089,2]
[335578441,1724339432163,-150.0,0.0001089,2]
[335578442,1724339432172,-810.0,0.0001089,2]
[335578443,1724339432182,-150.0,0.0001089,2]
[335578444,1724339432191,-1897.0,0.0001089,2]
[335578445,1724339432200,-552.0,0.0001089,2]
[335578446,1724339432209,-256.58306588,0.0001089,2]
[335578447,1724339432220,-3062.41693412,0.0001089,2]
[335578448,1724339432230,-1158.0,0.0001089,2]
[335578449,1724339432239,-248.0,0.0001089,2]
[335578450,1724339432248,-381.17665,0.0001089,2]
[335578451,1724339432257,-155.0,0.0001089,2]
[335578452,1724339432266,-528.8897318,0.0001089,2]
[335578454,1724339432276,-204.54756449,0.0001089,2]
[335578456,1724339432285,-1472.96911959,0.0001089,2]
[335578458,1724339432298,-681.39069848,0.0001089,2]
[335578460,1724339432312,-428.45648914,0.0001089,2]
[335578462,1724339437927,-162.99738207,0.00010888,2]
[335578464,1724339437938,-471.61369279,0.0001089,2]
[335578465,1724339437947,-365.88172485,0.0001089,2]
[335578470,1724339439800,-1243.13200477,0.0001089,2]
[335578471,1724339439811,-1056.28997038,0.0001089,2]
[335578472,1724339439820,-499.99,0.00010899,2]
[335578473,1724339439830,-287.09881303,0.00010899,2]
[335578474,1724339439838,-155.04549642,0.00010899,2]
[335578475,1724339439848,-703.34618144,0.00010899,2]
[335578476,1724339439857,-703.34618144,0.000109,2]
[335578477,1724339439867,-555.813877,0.000109,2]
[335578478,1724339439876,-2558.34900422,0.000109,2]
[335578534,1724339443872,-141.69099578,0.000109,2]
[335578535,1724339443881,-156.19,0.00010959,2]
[335578536,1724339443890,-250.0,0.00010959,2]
[335578537,1724339443899,-519.88,0.00010959,2]
[335578538,1724339443909,-442.17,0.00010959,2]
[335578539,1724339443918,-435.83542477,0.00010959,2]
[335578669,1724339445626,-170.43,0.00010509,2]
[335578671,1724339445635,-429.29859648,0.00010959,2]
[335578689,1724339445797,-1134.86597875,0.00010959,2]
[335578691,1724339445808,-303.89368108,0.00010979,2]
[335578693,1724339445818,-860.27502339,0.00010988,2]
[335578695,1724339445827,-211.80751988,0.00010989,2]
[335578697,1724339445837,-500.0,0.00010989,2]
[335578699,1724339445847,-500.0,0.00010989,2]
[335578701,1724339445856,-115.83316812,0.00010989,2]
[335583624,1724339498069,-2880.32,9.907e-05,2]
[335584051,1724339512000,904.0,9.907e-05,2]
[335584052,1724339593704,172.0,0.000178,120]
[335584053,1724339594186,172.0,0.0001779,120]
[335584054,1724339594669,172.0,0.0001778,120]
[335584055,1724339595143,172.0,0.000178,120]
[335584056,1724339597244,172.0,0.0001779,120]
[335584057,1724339597727,172.0,0.0001778,120]
[335584058,1724339598215,172.0,0.000178,120]
[335584059,1724339598731,172.0,0.0001779,120]
[335584060,1724339599247,172.0,0.000178,120]
[335584061,1724339599709,180.19,0.0001779,120]
[335584063,1724339806572,320.21,8.219e-05,2]
[335584064,1724339829720,880.11211499,0.0001,2]
[335584065,1724339847997,238.91923689,0.0001,2]
[335584066,1724339876976,341.22319239,0.0001,4]
[335584067,1724339878055,297.57530605,9.962e-05,2]
[335584068,1724339878498,413.39640966,0.0001,2]
[335584069,1724339879159,162.86951245,0.0001,2]
[335584070,1724339879281,170.6501045,0.0001,2]
[335584071,1724339880483,244.84199358,9.962e-05,2]
[335584072,1724339882134,1051.32949098,0.0001,2]
[335584073,1724339882361,485.22914892,9.962e-05,2]
[335584074,1724339882722,485.11777697,0.0001,2]
[335584075,1724339884528,300.2156988,0.0001,2]
[335584076,1724339896702,181.99684236,0.0001,2]
[335584077,1724339911702,181.99684236,0.0001,2]
[335584078,1724339964977,341.22319239,0.0001,4]
[335584079,1724339973193,485.11777697,0.0001,2]
[335584080,1724339975292,170.6501045,0.0001,2]
[335584081,1724339976502,413.39640966,0.0001,2]
[335584082,1724339976539,300.2156988,0.0001,2]
[335584083,1724339979343,162.86951245,0.0001,2]
[335584084,1724339984144,1051.32949098,0.0001,2]
[335584086,1724339990699,170.48,9.939e-05,2]
[335584087,1724339995006,341.22319239,0.0001,4]
[335584088,1724340031705,182.61571009,0.0001,2]
[335584089,1724340049430,760.45682958,0.0001,2]
[335584090,1724340053617,16243.40153425,0.0001,2]
[335584091,1724340060197,485.11777697,0.0001,2]
[335584092,1724340061512,413.39640966,0.0001,2]
[335584093,1724340062822,300.2156988,0.0001,2]
[335584094,1724340072348,201.78593122,0.0001,2]
[335584095,1724340075302,171.01578585,0.0001,2]
[335584096,1724340086874,1051.32949098,0.0001,2]
[335584097,1724340103668,3736.54001953,9.946e-05,2]
[335584098,1724340111994,285.89639991,0.0001,4]
[335584100,1724340134695,485.11777697,0.0001,2]
[335584101,1724340153092,870.54,0.00024657,120]
[335584102,1724340153363,870.54,0.00025342,120]
[335584103,1724340153631,870.54,0.00026027,120]
[335584104,1724340153950,870.54,0.00026712,120]
[335584105,1724340154114,360.0,9.912e-05,2]
[335584106,1724340163523,413.39640966,0.0001,2]
[335584107,1724340178510,413.39640966,0.0001,2]
[335584108,1724340186959,331.30309931,0.00027,120]
[335584109,1724340194557,331.30309931,0.00027,120]
[335584110,1724340203436,331.30309931,0.00027,120]
[335584111,1724340207983,1051.32949098,0.0001,2]
[335584112,1724340210671,331.30309931,0.00027,120]
[335584114,1724340280708,21780.36,9.905e-05,2]
[335584115,1724340302256,2000.0,0.00027,120]
[335584116,1724340312704,239.88,9.907e-05,2]
[335584117,1724340314286,150.0,9.888e-05,2]
[335584118,1724340329301,2000.0,0.00027,120]
[335584119,1724340342312,2914.35400796,0.0001,2]
[335584120,1724340342807,-300.0,0.00010045,2]
[335584121,1724340342831,-300.0,0.00010045,2]
[335584122,1724340361190,-9400.0,0.00010046,2]
[335584123,1724340366725,364.29,8.219e-05,2]
[335584124,1724340372797,10000.0,0.00027,120]
[335584125,1724340398159,150.0,0.00027,120]
[335584128,1724340495793,6000.0,0.00027,120]
[335584129,1724340510343,500.0,0.00025,60]
[335584133,1724340515568,-276.8,0.00010046,2]
[335584134,1724340515590,-1113.38,0.00010046,2]
[335584135,1724340515611,-3294.74,0.00010046,2]
[335584140,1724340563052,380.54310547,0.00010046,2]
[335584143,1724340564701,778.56,9.898e-05,2]
[335584144,1724340573734,155.97689453,0.00010046,2]
[335584147,1724340627187,180.0,9.889e-05,2]
[335584158,1724340631773,-817.05124548,0.00010046,2]
[335584161,1724340631798,-78.30135097,0.00010046,2]
[335584164,1724340631807,-186.43470574,0.00010097,2]
[335584166,1724340631816,-338.6472261,0.00010471,2]
[335584168,1724340631827,-102.24135199,0.00010471,2]
[335584170,1724340631836,-364.29,0.00010471,2]
[335584171,1724340631845,-191.386005,0.00010585,2]
[335584172,1724340631854,-160.470016,0.00010585,2]
[335584173,1724340631862,-5575.98111126,0.00010585,2]
[335584174,1724340631871,-200.0,0.00010767,2]
[335584175,1724340631881,-300.0,0.00010779,2]
[335584176,1724340631890,-300.0,0.00010779,2]
[335584177,1724340631899,-7081.50066435,0.0001078,2]
[335584178,1724340631909,-1000.0,0.0001079,2]
[335584179,1724340631917,-499.99,0.0001079,2]
[335584180,1724340631926,-340.61511465,0.00010792,2]
[335584181,1724340631935,-586.9791,0.00010858,2]
[335584182,1724340631944,-2581.02,0.00010862,2]
[335584183,1724340631953,-255.66,0.00010862,2]
[335584184,1724340631962,-578.76941515,0.00010862,2]
[335584185,1724340631971,-357.4813523,0.00010862,2]
[335584186,1724340631980,-4506.3855534,0.00010875,2]
[335584187,1724340631989,-677.74409,0.0001088,2]
[335584188,1724340631998,-150.0,0.00010885,2]
[335584189,1724340632007,-9887.3644,0.00010886,2]
[335584190,1724340632016,-785.6302,0.00010886,2]
[335584191,1724340632024,-156.21712752,0.00010888,2]
[335584192,1724340632033,-155.21195308,0.00010888,2]
[335584193,1724340632042,-494.98605906,0.00010888,2]
[335584194,1724340632051,-810.0,0.00010889,2]
[335584195,1724340632060,-556.0,0.00010889,2]
[335584196,1724340632069,-150.0,0.00010889,2]
[335584197,1724340632078,-447.0,0.00010889,2]
[335584198,1724340632086,-150.0,0.00010889,2]
[335584199,1724340632095,-552.0,0.00010889,2]
[335584200,1724340632104,-1897.0,0.00010889,2]
[335584201,1724340632113,-1158.0,0.00010889,2]
[335584202,1724340632123,-2053.5460884,0.00010889,2]
[335584204,1724340632134,-1265.4539116,0.00010889,2]
[335584206,1724340632143,-248.0,0.00010889,2]
[335584208,1724340632152,-616.636,0.00010889,2]
[335584209,1724340632161,-1416.104,0.00010889,2]
[335584210,1724340632170,-1226.92586415,0.00010889,2]
[335584211,1724340632180,-31.07413585,0.00010889,2]
[335584212,1724340632189,-1544.0,0.00010889,2]
[335584213,1724340632198,-611.78,0.00010889,2]
[335584214,1724340632207,-150.81,0.00010889,2]
[335584215,1724340632216,-525.39655304,0.00010889,2]
[335584216,1724340632226,-539.65179054,0.00010889,2]
[335584217,1724340632236,-287.78639989,0.00010889,2]
[335584218,1724340632245,-500.0,0.00010889,2]
[335584219,1724340632254,-500.0,0.00010889,2]
[335584220,1724340632263,-500.0,0.00010889,2]
[335584221,1724340632272,-500.0,0.00010889,2]
[335584222,1724340632282,-500.0,0.00010889,2]
[335584223,1724340632290,-504.45,0.00010889,2]
[335584224,1724340632300,-617.57,0.00010889,2]
[335584225,1724340632309,-500.0,0.00010889,2]
[335584226,1724340632319,-500.0,0.00010889,2]
[335584227,1724340632328,-500.0,0.00010889,2]
[335584228,1724340632340,-500.0,0.00010889,2]
[335584229,1724340632349,-500.0,0.00010889,2]
[335584230,1724340632358,-506.07,0.00010889,2]
[335584231,1724340632368,-500.0,0.00010889,2]
[335584232,1724340632377,-552.43,0.00010889,2]
[335584233,1724340632386,-500.0,0.00010889,2]
[335584234,1724340632395,-500.0,0.00010889,2]
[335584235,1724340632405,-196.72,0.00010889,2]
[335584236,1724340632415,-500.0,0.00010889,2]
[335584237,1724340632425,-500.0,0.00010889,2]
[335584238,1724340632434,-500.0,0.00010889,2]
[335584239,1724340632443,-500.0,0.00010889,2]
[335584240,1724340632452,-500.0,0.00010889,2]
[335584241,1724340632462,-500.0,0.00010889,2]
[335584242,1724340632473,-519.04451331,0.00010889,2]
[335584243,1724340632483,-500.0,0.00010889,2]
[335584244,1724340632492,-500.0,0.00010889,2]
[335584245,1724340632502,-500.0,0.00010889,2]
[335584246,1724340632511,-500.0,0.00010889,2]
[335584247,1724340632520,-500.0,0.00010889,2]
[335584248,1724340632529,-637.73607862,0.00010889,2]
[335584249,1724340632540,-500.0,0.00010889,2]
[335584250,1724340632551,-338.68,0.00010889,2]
[335584251,1724340632561,-500.0,0.00010889,2]
[335584252,1724340632571,-500.0,0.00010889,2]
[335584253,1724340632580,-500.0,0.00010889,2]
[335584254,1724340632589,-500.0,0.00010889,2]
[335584255,1724340632598,-500.0,0.00010889,2]
[335584256,1724340632607,-500.0,0.00010889,2]
[335584257,1724340632617,-500.0,0.00010889,2]
[335584258,1724340632626,-516.94257474,0.00010889,2]
[335584259,1724340632635,-500.0,0.00010889,2]
[335584260,1724340632644,-500.0,0.00010889,2]
[335584261,1724340632653,-500.0,0.00010889,2]
[335584262,1724340632663,-521.07153725,0.00010889,2]
[335584263,1724340632672,-500.0,0.00010889,2]
[335584264,1724340632682,-500.0,0.00010889,2]
[335584265,1724340632691,-516.53393448,0.00010889,2]
[335584266,1724340632700,-500.0,0.00010889,2]
[335584267,1724340632709,-619.46928735,0.00010889,2]
[335584268,1724340632719,-500.0,0.00010889,2]
[335584269,1724340632728,-500.0,0.00010889,2]
[335584270,1724340632737,-500.0,0.00010889,2]
[335584271,1724340632747,-500.0,0.00010889,2]
[335584272,1724340632756,-500.0,0.00010889,2]
[335584273,1724340632765,-500.0,0.00010889,2]
[335584274,1724340632774,-500.0,0.00010889,2]
[335584275,1724340632784,-608.21,0.00010889,2]
[335584276,1724340632794,-500.0,0.00010889,2]
[335584277,1724340632803,-500.0,0.00010889,2]
[335584278,1724340632812,-500.0,0.00010889,2]
[335584279,1724340632821,-500.0,0.00010889,2]
[335584280,1724340632830,-500.0,0.00010889,2]
[335584281,1724340632839,-210.98,0.00010889,2]
[335584282,1724340632849,-159.21,0.00010889,2]
[335584283,1724340632858,-303.27,0.00010889,2]
[335584284,1724340632867,-4953.5003,0.0001089,2]
[335584285,1724340632877,-1000.0,0.0001089,2]
[335584286,1724340632887,-500.0,0.0001089,2]
[335584287,1724340632897,-134241.27745713,0.0001089,2]
[335584288,1724340632911,-6286.357445,0.0001089,2]
[335584289,1724340632922,-6499.02376926,0.0001089,2]
[335584290,1724340632937,-278.60878409,0.0001089,2]
[335584291,1724340632948,-741.65536624,0.0001089,2]
[335584292,1724340632964,-96953.07717828,0.0001089,2]
[335584293,1724340632973,-39192.262,0.0001089,2]
[335584294,1724340632983,-100000.0,0.0001089,2]
[335584295,1724340632992,-494.98605906,0.00010892,2]
[335584296,1724340633001,-164.74306907,0.00010893,2]
[335584297,1724340633160,-175.10094526,0.00010895,2]
[335584298,1724340633170,-494.98605906,0.00010895,2]
[335584299,1724340633180,-152.80631539,0.00010896,2]
[335584300,1724340633190,-179.65493734,0.00010899,2]
[335584301,1724340633199,-9973.14964752,0.00010899,2]
[335584302,1724340633209,-9973.1496475,0.00010899,2]
[335584303,1724340633219,-9973.1496475,0.00010899,2]
[335584304,1724340633229,-9973.1496475,0.00010899,2]
[335584305,1724340633238,-9973.1496475,0.00010899,2]
[335584306,1724340633248,-9973.1496475,0.00010899,2]
[335584307,1724340633258,-9973.1496475,0.00010899,2]
[335584308,1724340633268,-9973.1496475,0.00010899,2]
[335584309,1724340633278,-9973.1496475,0.00010899,2]
[335584310,1724340633288,-153.03920008,0.00010899,2]
[335584311,1724340633298,-7879.79040369,0.00010899,2]
[335584312,1724340633308,-978.84684165,0.000109,2]
[335584313,1724340633318,-153.03920008,0.000109,2]
[335584314,1724340633328,-7879.79040367,0.000109,2]
[335584315,1724340633341,-9973.1496475,0.000109,2]
[335584316,1724340633351,-500.5006314,0.000109,2]
[335584317,1724340633360,-500.50063133,0.000109,2]
[335584318,1724340633370,-500.50063133,0.000109,2]
[335584319,1724340633380,-500.50063133,0.000109,2]
[335584320,1724340633390,-500.50063133,0.000109,2]
[335584321,1724340633399,-500.50063133,0.000109,2]
[335584322,1724340633410,-500.50063133,0.000109,2]
[335584323,1724340633421,-500.50063133,0.000109,2]
[335584324,1724340633431,-2295.03,0.000109,2]
[335584325,1724340633440,-978.84684165,0.000109,2]
[335584326,1724340633449,-153.03920008,0.000109,2]
[335584327,1724340633458,-7879.79040367,0.000109,2]
[335584328,1724340633467,-340.61511465,0.000109,2]
[335584329,1724340633476,-155.08636607,0.00010949,2]
[335584330,1724340633485,-500.0,0.00010958,2]
[335584331,1724340633494,-500.0,0.00010958,2]
[335584332,1724340633503,-182.31861271,0.00010958,2]
[335584333,1724340633511,-500.0,0.00010958,2]
[335584334,1724340633521,-500.0,0.00010958,2]
[335584335,1724340633530,-506.37478052,0.00010958,2]
[335584336,1724340633540,-500.0,0.00010958,2]
[335584337,1724340633550,-500.0,0.00010958,2]
[335584338,1724340633559,-500.0,0.00010958,2]
[335584339,1724340633569,-332.92557285,0.00010958,2]
[335584340,1724340633579,-152.14,0.00010959,2]
[335584341,1724340633588,-150.0,0.00010959,2]
[335584342,1724340633598,-250.0,0.00010959,2]
[335584343,1724340633608,-2000.0,0.00010959,2]
[335584344,1724340633619,-622.77897827,0.00010973,2]
[335584345,1724340633628,-500.0,0.00010973,2]
[335584346,1724340633638,-400.05083341,0.00010973,2]
[335584347,1724340633647,-179.4374229,0.00010973,2]
[335584348,1724340633657,-500.0,0.00010973,2]
[335584349,1724340633666,-500.0,0.00010973,2]
[335584350,1724340633676,-200.19816142,0.00010973,2]
[335584351,1724340633686,-155.08380576,0.00010973,2]
[335584352,1724340633696,-302.25090843,0.00010973,2]
[335584353,1724340633705,-158.653,0.00010982,2]
[335584354,1724340633714,-888.56559411,0.00010984,2]
[335584355,1724340633723,-500.0,0.00010986,2]
[335584356,1724340633733,-500.0,0.00010986,2]
[335584357,1724340633742,-500.0,0.00010986,2]
[335584358,1724340633752,-500.0,0.00010986,2]
[335584359,1724340633762,-500.0,0.00010986,2]
[335584360,1724340633770,-500.0,0.00010986,2]
[335584361,1724340633780,-500.0,0.00010986,2]
[335584362,1724340633790,-500.0,0.00010986,2]
[335584363,1724340633800,-500.0,0.00010986,2]
[335584364,1724340633810,-500.0,0.00010986,2]
[335584365,1724340633820,-500.0,0.00010986,2]
[335584366,1724340633830,-500.0,0.00010986,2]
[335584367,1724340633840,-500.0,0.00010986,2]
[335584368,1724340633850,-500.0,0.00010986,2]
[335584369,1724340633860,-500.0,0.00010986,2]
[335584370,1724340633869,-500.0,0.00010986,2]
[335584371,1724340633878,-500.0,0.00010986,2]
[335584372,1724340633887,-500.0,0.00010986,2]
[335584373,1724340633897,-500.0,0.00010986,2]
[335584374,1724340633906,-500.0,0.00010986,2]
[335584375,1724340633915,-500.0,0.00010986,2]
[335584376,1724340633924,-500.0,0.00010986,2]
[335584377,1724340633933,-626.51,0.00010986,2]
[335584378,1724340633942,-500.0,0.00010986,2]
[335584379,1724340633952,-500.0,0.00010986,2]
[335584380,1724340633962,-500.0,0.00010986,2]
[335584381,1724340633971,-568.35,0.00010986,2]
[335584382,1724340633981,-500.0,0.00010986,2]
[335584383,1724340633990,-500.0,0.00010986,2]
[335584384,1724340634000,-500.0,0.00010986,2]
[335584385,1724340634010,-500.0,0.00010986,2]
[335584386,1724340634019,-500.0,0.00010986,2]
[335584387,1724340634029,-500.0,0.00010986,2]
[335584388,1724340634039,-500.0,0.00010986,2]
[335584389,1724340634049,-562.05,0.00010986,2]
[335584390,1724340634058,-500.0,0.00010986,2]
[335584391,1724340634068,-500.0,0.00010986,2]
[335584392,1724340634077,-500.0,0.00010986,2]
[335584393,1724340634087,-500.0,0.00010986,2]
[335584394,1724340634097,-500.0,0.00010986,2]
[335584395,1724340634107,-500.0,0.00010986,2]
[335584396,1724340634117,-268.15,0.00010986,2]
[335584397,1724340634126,-500.0,0.00010986,2]
[335584398,1724340634136,-556.87,0.00010986,2]
[335584399,1724340634145,-563.82,0.00010986,2]
[335584400,1724340634155,-183300.0,0.00010986,2]
[335584401,1724340634165,-500.0,0.00010988,2]
[335584402,1724340634175,-500.0,0.00010988,2]